fUST/lending_fUST_20260504
["ID","MTS","AMOUNT","RATE_DAILY","PERIOD"]
[421539631,1777836647000,-500.0,0.00015599,2]
[421539633,1777836647000,-508.79060187,0.00015599,2]
[421539636,1777836647000,-1410.0,0.00015659,2]
[421539634,1777836647000,-1966.92550568,0.000156,2]
[421539642,1777836647000,-3014.77266319,0.00015664,2]
[421539632,1777836647000,-500.0,0.00015599,2]
[421539638,1777836647000,-442.0,0.00015659,2]
[421539637,1777836647000,-646.0,0.00015659,2]
[421539644,1777836647000,-12438.3139383,0.00015668,2]
[421539649,1777836647000,-1000.0,0.00015699,6]
[421539651,1777836647000,-1000.0,0.00015699,5]
[421539650,1777836647000,-1000.0,0.00015699,7]
[421539653,1777836647000,-151.0,0.000157,2]
[421539643,1777836647000,-309.15587451,0.00015665,2]
[421539646,1777836647000,-151.0,0.00015668,2]
[421539613,1777836647000,-500.0,0.00015597,2]
[421539640,1777836647000,-154.6949573,0.0001566,2]
[421539610,1777836647000,-160.0,0.00015499,2]
[421539589,1777836647000,-7161.19876106,0.0001482,2]
[421539612,1777836647000,-1559.0,0.000155,2]
[421539586,1777836647000,-3302.20700911,0.0001482,2]
[421539590,1777836647000,-8404.46243486,0.0001482,2]
[421539587,1777836647000,-4973.05469518,0.0001482,2]
[421539588,1777836647000,-6017.39618117,0.0001482,2]
[421539592,1777836647000,-11189.37306416,0.0001482,2]
[421539594,1777836647000,-500.0,0.0001482,2]
[421539591,1777836647000,-9747.18720256,0.0001482,2]
[421539603,1777836647000,-2150.738,0.00015489,2]
[421539593,1777836647000,-12731.02001967,0.0001482,2]
[421539604,1777836647000,-167.23,0.00015489,3]
[421539602,1777836647000,-160.0,0.0001548,2]
[421539611,1777836647000,-1966.92550568,0.000155,2]
[421539600,1777836647000,-153.74,0.00015389,2]
[421539598,1777836647000,-500.0,0.00015094,2]
[421539597,1777836647000,-232.985784,0.00015068,2]
[421539596,1777836647000,-3014.77266319,0.00015017,2]
[421539595,1777836647000,-159.16,0.00014967,2]
[421539601,1777836647000,-5882.70248199,0.00015399,2]
[421539609,1777836647000,-325.6399711,0.00015497,2]
[421539608,1777836647000,-95.85897047,0.00015492,2]
[421539607,1777836647000,-500.0,0.00015491,2]
[421539606,1777836647000,-554.80304217,0.0001549,2]
[421539605,1777836647000,-501.73,0.00015489,3]
[421539614,1777836647000,-500.0,0.00015597,2]
[421539599,1777836647000,-500.0,0.00015219,2]
[421539648,1777836647000,-254.32769602,0.00015697,2]
[421539652,1777836647000,-1000.0,0.00015699,13]
[421539647,1777836647000,-280.506,0.0001569,2]
[421539690,1777836647000,-300.0,0.00016013,2]
[421539691,1777836647000,-300.0,0.00016013,2]
[421539689,1777836647000,-300.0,0.00016013,2]
[421539684,1777836647000,-300.0,0.00016013,2]
[421539683,1777836647000,-300.0,0.00016013,2]
[421539686,1777836647000,-300.0,0.00016013,2]
[421539687,1777836647000,-300.0,0.00016013,2]
[421539685,1777836647000,-300.0,0.00016013,2]
[421539688,1777836647000,-300.0,0.00016013,2]
[421539692,1777836647000,-300.0,0.00016013,2]
[421539696,1777836647000,-155.0,0.00016042,2]
[421539693,1777836647000,-300.0,0.00016013,2]
[421539697,1777836647000,-225.38977988,0.00016042,2]
[421539694,1777836647000,-600.0,0.00016013,2]
[421539695,1777836647000,-2230.315306,0.00016037,2]
[421539699,1777836647000,-1559.0,0.00016048,2]
[421539702,1777836647000,-151.0,0.000161,2]
[421539698,1777836647000,-250.38489549,0.00016044,2]
[421539703,1777836647000,-151.0,0.000161,2]
[421539700,1777836647000,-5000.0,0.0001606,2]
[421539701,1777836647000,-1966.92550568,0.000161,2]
[421539705,1777836647000,-1469.58094067,0.00016186,2]
[421539704,1777836647000,-1469.58094067,0.00016159,2]
[421539706,1777836647000,-151.0,0.000162,2]
[421539645,1777836647000,-151.0,0.00015668,2]
[421539680,1777836647000,-300.0,0.00016013,2]
[421539682,1777836647000,-300.0,0.00016013,2]
[421539663,1777836647000,-1559.0,0.00015774,2]
[421539674,1777836647000,-1966.92550568,0.000159,2]
[421539654,1777836647000,-151.0,0.000157,2]
[421539657,1777836647000,-151.0,0.000157,2]
[421539664,1777836647000,-1287.5,0.000158,2]
[421539681,1777836647000,-300.0,0.00016013,2]
[421539660,1777836647000,-152.0,0.00015733,7]
[421539665,1777836647000,-306.54,0.000158,2]
[421539656,1777836647000,-151.0,0.000157,2]
[421539661,1777836647000,-152.0,0.00015733,7]
[421539659,1777836647000,-500.0,0.000157,2]
[421539666,1777836647000,-1911.82,0.000158,2]
[421539662,1777836647000,-822.0,0.00015739,2]
[421539655,1777836647000,-151.0,0.000157,2]
[421539658,1777836647000,-151.0,0.000157,2]
[421539668,1777836647000,-1966.92550568,0.000158,2]
[421539675,1777836647000,-144781.0,0.000159,2]
[421539667,1777836647000,-455.19,0.000158,2]
[421539673,1777836647000,-822.0,0.00015894,2]
[421539670,1777836647000,-1706.19,0.000158,2]
[421539676,1777836647000,-181.04321,0.000159,2]
[421539671,1777836647000,-151.0,0.000158,2]
[421539677,1777836647000,-4560.26233869,0.00015931,2]
[421539679,1777836647000,-300.0,0.00016013,2]
[421539678,1777836647000,-151.0,0.00016,2]
[421539669,1777836647000,-1706.19,0.000158,2]
[421539672,1777836647000,-678.01342512,0.00015826,2]
[421539714,1777836648000,-151.0,0.000163,2]
[421539710,1777836648000,-288.971898,0.00016248,2]
[421539709,1777836648000,-151.0,0.00016248,2]
[421539715,1777836648000,-503.714,0.000163,2]
[421539707,1777836648000,-822.0,0.0001623,2]
[421539708,1777836648000,-814.0,0.00016239,2]
[421539711,1777836648000,-359.8239226,0.00016274,2]
[421539713,1777836648000,-1966.92550568,0.000163,2]
[421539712,1777836648000,-700.0,0.0001629,2]
[421539718,1777836648000,-5882.70248193,0.00016344,2]
[421539725,1777836648000,-224.12387974,0.00016378,7]
[421539719,1777836648000,-4875.19201006,0.0001637,2]
[421539716,1777836648000,-3014.77266319,0.00016311,2]
[421539720,1777836648000,-160.0,0.00016378,2]
[421539721,1777836648000,-2273.736183,0.00016378,2]
[421539722,1777836648000,-4387.472367,0.00016378,2]
[421539723,1777836648000,-160.0,0.00016378,7]
[421539724,1777836648000,-1353.871827,0.00016378,7]
[421539717,1777836648000,-1559.0,0.00016322,2]
[421539727,1777836661000,12398.65936219,7.6e-05,2]
[421539728,1777836674000,-1000.0,0.0001,2]
[421539957,1777837832000,-500.0,9.999e-05,2]
[421539947,1777837832000,-1045.6639,8.864e-05,2]
[421539951,1777837832000,-5000.0,8.954e-05,2]
[421539948,1777837832000,-262.81345625,8.909e-05,2]
[421539956,1777837832000,-178.61073051,9.999e-05,2]
[421539961,1777837832000,-500.0,9.999e-05,2]
[421539954,1777837832000,-153.87241983,9.999e-05,2]
[421539962,1777837832000,-356.93902839,9.999e-05,2]
[421539971,1777837832000,-2750.0,0.0001,2]
[421539952,1777837832000,-402.971,9.999e-05,2]
[421539963,1777837832000,-500.0,9.999e-05,2]
[421539966,1777837832000,-1060.68440146,0.0001,2]
[421539965,1777837832000,-500.0,9.999e-05,2]
[421539969,1777837832000,-2013.05918132,0.0001,2]
[421539964,1777837832000,-500.0,9.999e-05,2]
[421539974,1777837832000,-1374.65314757,0.0001,2]
[421539976,1777837832000,-1076.45481776,0.0001,2]
[421539959,1777837832000,-500.0,9.999e-05,2]
[421540033,1777837838000,-5533.80085406,0.0001,2]
[421540032,1777837838000,-4763.05918132,8.775e-05,2]
[421540034,1777837838000,-365.33276144,0.0001,2]
[421540045,1777837841000,-2433.1418704,0.0001,2]
[421540044,1777837841000,-8062.67349115,0.0001,2]
[421540043,1777837841000,-655.88607515,0.0001,2]
[421540073,1777837844000,-2177.2097927,0.0001,2]
[421540086,1777837846000,-25936.97707419,0.0001,2]
[421540087,1777837847000,-29057.86598955,0.0001,2]
[421540292,1777839031000,-542.0,8.774e-05,2]
[421540294,1777839031000,-273.64248594,9.043e-05,2]
[421540291,1777839031000,-1138.83088821,8.774e-05,2]
[421540297,1777839031000,-5016.91013597,0.0001,2]
[421540295,1777839031000,-175.86407566,9.043e-05,2]
[421540296,1777839031000,-311.0,9.846e-05,2]
[421540293,1777839031000,-300.0,8.951e-05,2]
[421540290,1777839031000,-4413.33305958,8.686e-05,2]
[421540351,1777839038000,-1478.26365169,0.00013219,2]
[421540346,1777839038000,-334.46,0.00012329,2]
[421540345,1777839038000,-3233.6368676,0.0001181,2]
[421540347,1777839038000,-864.0,0.00012341,2]
[421540350,1777839038000,-372.15378088,0.00013043,2]
[421540348,1777839038000,-1507.38633159,0.000129,2]
[421540352,1777839038000,-1000.0,0.00013575,2]
[421540354,1777839038000,-1000.0,0.00013699,2]
[421540349,1777839038000,-1507.38633159,0.000129,2]
[421540353,1777839038000,-213.749434,0.00013699,2]
[421540361,1777839038000,-1559.0,0.00014247,2]
[421540356,1777839038000,-1000.0,0.00013699,2]
[421540357,1777839038000,-1507.38633159,0.00013757,2]
[421540358,1777839038000,-1559.0,0.00013973,2]
[421540359,1777839038000,-2945.87707088,0.00014175,2]
[421540362,1777839038000,-151.0,0.000143,2]
[421540340,1777839038000,-210.736,0.00011,2]
[421540364,1777839038000,-5625.58358733,0.00014736,2]
[421540363,1777839038000,-1559.0,0.00014521,2]
[421540367,1777839038000,-1559.0,0.00014795,2]
[421540360,1777839038000,-500.0,0.00014175,2]
[421540365,1777839038000,-151.0,0.00014745,2]
[421540355,1777839038000,-1559.0,0.00013699,2]
[421540342,1777839038000,-720.0,0.00011219,2]
[421540338,1777839038000,-600.0,0.00010199,2]
[421540335,1777839038000,-300.0,0.00010199,2]
[421540318,1777839038000,-28387.72717787,0.0001,2]
[421540319,1777839038000,-1562.18908082,0.0001,2]
[421540320,1777839038000,-1164.00506663,0.0001,2]
[421540322,1777839038000,-169845.50962374,0.000101,2]
[421540321,1777839038000,-1478.2636517,0.00010099,2]
[421540323,1777839038000,-300.0,0.00010199,2]
[421540324,1777839038000,-300.0,0.00010199,2]
[421540328,1777839038000,-300.0,0.00010199,2]
[421540326,1777839038000,-300.0,0.00010199,2]
[421540327,1777839038000,-300.0,0.00010199,2]
[421540341,1777839038000,-322.89813341,0.00011043,2]
[421540325,1777839038000,-300.0,0.00010199,2]
[421540330,1777839038000,-300.0,0.00010199,2]
[421540332,1777839038000,-300.0,0.00010199,2]
[421540333,1777839038000,-300.0,0.00010199,2]
[421540334,1777839038000,-300.0,0.00010199,2]
[421540336,1777839038000,-300.0,0.00010199,2]
[421540370,1777839038000,-244.0,0.00014932,2]
[421540343,1777839038000,-1478.26365169,0.00011659,2]
[421540339,1777839038000,-2345.7211218,0.00010959,2]
[421540337,1777839038000,-300.0,0.00010199,2]
[421540344,1777839038000,-773.8759994,0.0001181,2]
[421540331,1777839038000,-300.0,0.00010199,2]
[421540366,1777839038000,-1478.26365169,0.00014778,2]
[421540329,1777839038000,-300.0,0.00010199,2]
[421540369,1777839038000,-1000.0,0.00014932,2]
[421540398,1777839038000,-1507.38633159,0.00016329,2]
[421540399,1777839038000,-1478.26365169,0.00016338,2]
[421540405,1777839038000,-155.0,0.00016437,2]
[421540400,1777839038000,-503.4046,0.000164,2]
[421540407,1777839038000,-500.0,0.00016437,2]
[421540408,1777839038000,-500.0,0.00016437,2]
[421540406,1777839038000,-500.0,0.00016437,2]
[421540402,1777839038000,-1519.85756867,0.000164,2]
[421540404,1777839038000,-492.0,0.00016426,2]
[421540401,1777839038000,-194.0,0.000164,2]
[421540403,1777839038000,-1000.0,0.00016426,2]
[421540409,1777839038000,-500.0,0.00016437,2]
[421540410,1777839038000,-500.0,0.00016437,2]
[421540414,1777839038000,-500.0,0.00016437,2]
[421540413,1777839038000,-500.0,0.00016437,2]
[421540412,1777839038000,-500.0,0.00016437,2]
[421540415,1777839038000,-500.0,0.00016437,2]
[421540416,1777839038000,-500.0,0.00016437,2]
[421540419,1777839038000,-500.0,0.00016437,2]
[421540417,1777839038000,-500.0,0.00016437,2]
[421540420,1777839038000,-500.0,0.00016437,2]
[421540418,1777839038000,-500.0,0.00016437,2]
[421540368,1777839038000,-151.0,0.000148,2]
[421540397,1777839038000,-322.377,0.000163,2]
[421540395,1777839038000,-822.0,0.00016262,2]
[421540411,1777839038000,-500.0,0.00016437,2]
[421540394,1777839038000,-822.0,0.0001623,2]
[421540371,1777839038000,-1507.38633159,0.00015043,2]
[421540396,1777839038000,-1519.85756867,0.000163,2]
[421540383,1777839038000,-885.62,0.00015616,2]
[421540381,1777839038000,-160.0,0.00015557,2]
[421540382,1777839038000,-1519.85756867,0.000156,2]
[421540372,1777839038000,-421.40942835,0.00015043,2]
[421540377,1777839038000,-1559.0,0.00015342,2]
[421540375,1777839038000,-5863.31401441,0.00015296,2]
[421540380,1777839038000,-160.0,0.00015557,2]
[421540373,1777839038000,-1559.0,0.00015068,2]
[421540379,1777839038000,-1519.85756867,0.000155,2]
[421540374,1777839038000,-264.364471,0.00015068,2]
[421540378,1777839038000,-151.0,0.000154,2]
[421540386,1777839038000,-442.0,0.00015626,2]
[421540376,1777839038000,-2150.738,0.00015298,2]
[421540392,1777839038000,-318.54712918,0.00016013,2]
[421540388,1777839038000,-1519.85756867,0.000158,2]
[421540391,1777839038000,-151.0,0.000159,2]
[421540389,1777839038000,-241.67627832,0.00015846,2]
[421540387,1777839038000,-163.92774902,0.00015697,2]
[421540393,1777839038000,-1519.85756867,0.000161,2]
[421540385,1777839038000,-185.0,0.00015626,2]
[421540384,1777839038000,-2213.0,0.00015626,2]
[421540390,1777839038000,-1519.85756867,0.000159,2]
[421540464,1777839039000,-500.0,0.00016438,2]
[421540469,1777839039000,-500.0,0.00016438,2]
[421540460,1777839039000,-500.0,0.00016437,2]
[421540471,1777839039000,-500.0,0.00016438,2]
[421540462,1777839039000,-3509.2465,0.00016438,2]
[421540452,1777839039000,-500.0,0.00016437,2]
[421540463,1777839039000,-3509.2465,0.00016438,2]
[421540461,1777839039000,-514.60924793,0.00016437,2]
[421540459,1777839039000,-500.0,0.00016437,2]
[421540449,1777839039000,-500.0,0.00016437,2]
[421540470,1777839039000,-1356.45,0.00016438,2]
[421540455,1777839039000,-500.0,0.00016437,2]
[421540466,1777839039000,-408.27557252,0.00016438,2]
[421540465,1777839039000,-500.0,0.00016438,2]
[421540482,1777839039000,-296.8641205,0.00016438,2]
[421540468,1777839039000,-500.0,0.00016438,2]
[421540473,1777839039000,-612.97,0.00016438,2]
[421540472,1777839039000,-1102.72,0.00016438,2]
[421540484,1777839039000,-500.0,0.00016438,2]
[421540483,1777839039000,-500.0,0.00016438,2]
[421540479,1777839039000,-931.32,0.00016438,2]
[421540476,1777839039000,-500.0,0.00016438,2]
[421540475,1777839039000,-252.55551177,0.00016438,2]
[421540474,1777839039000,-500.0,0.00016438,2]
[421540477,1777839039000,-533.63,0.00016438,2]
[421540481,1777839039000,-500.0,0.00016438,2]
[421540485,1777839039000,-500.0,0.00016438,2]
[421540478,1777839039000,-500.0,0.00016438,2]
[421540445,1777839039000,-500.0,0.00016437,2]
[421540467,1777839039000,-500.0,0.00016438,2]
[421540453,1777839039000,-500.0,0.00016437,2]
[421540421,1777839039000,-500.0,0.00016437,2]
[421540446,1777839039000,-500.0,0.00016437,2]
[421540428,1777839039000,-500.0,0.00016437,2]
[421540429,1777839039000,-500.0,0.00016437,2]
[421540425,1777839039000,-500.0,0.00016437,2]
[421540422,1777839039000,-500.0,0.00016437,2]
[421540430,1777839039000,-500.0,0.00016437,2]
[421540427,1777839039000,-500.0,0.00016437,2]
[421540426,1777839039000,-500.0,0.00016437,2]
[421540423,1777839039000,-500.0,0.00016437,2]
[421540424,1777839039000,-500.0,0.00016437,2]
[421540431,1777839039000,-500.0,0.00016437,2]
[421540434,1777839039000,-500.0,0.00016437,2]
[421540433,1777839039000,-500.0,0.00016437,2]
[421540439,1777839039000,-500.0,0.00016437,2]
[421540440,1777839039000,-500.0,0.00016437,2]
[421540457,1777839039000,-500.0,0.00016437,2]
[421540436,1777839039000,-500.0,0.00016437,2]
[421540441,1777839039000,-500.0,0.00016437,2]
[421540443,1777839039000,-500.0,0.00016437,2]
[421540432,1777839039000,-500.0,0.00016437,2]
[421540435,1777839039000,-500.0,0.00016437,2]
[421540437,1777839039000,-500.0,0.00016437,2]
[421540442,1777839039000,-500.0,0.00016437,2]
[421540444,1777839039000,-500.0,0.00016437,2]
[421540454,1777839039000,-500.0,0.00016437,2]
[421540458,1777839039000,-500.0,0.00016437,2]
[421540456,1777839039000,-500.0,0.00016437,2]
[421540451,1777839039000,-500.0,0.00016437,2]
[421540448,1777839039000,-500.0,0.00016437,2]
[421540450,1777839039000,-500.0,0.00016437,2]
[421540447,1777839039000,-500.0,0.00016437,2]
[421540438,1777839039000,-500.0,0.00016437,2]
[421540488,1777839039000,-1875.22,0.00016438,2]
[421540480,1777839039000,-793.62,0.00016438,2]
[421540487,1777839039000,-281.1794163,0.00016438,2]
[421540523,1777839039000,-500.0,0.00016438,2]
[421540519,1777839039000,-500.0,0.00016438,2]
[421540522,1777839039000,-500.0,0.00016438,2]
[421540534,1777839039000,-500.0,0.00016438,2]
[421540533,1777839039000,-500.0,0.00016438,2]
[421540531,1777839039000,-500.0,0.00016438,2]
[421540537,1777839039000,-500.0,0.00016438,2]
[421540539,1777839039000,-500.0,0.00016438,2]
[421540543,1777839039000,-500.0,0.00016438,2]
[421540540,1777839039000,-1381.69,0.00016438,2]
[421540542,1777839039000,-812.37,0.00016438,2]
[421540541,1777839039000,-959.88,0.00016438,2]
[421540538,1777839039000,-866.23,0.00016438,2]
[421540536,1777839039000,-500.0,0.00016438,2]
[421540518,1777839039000,-500.0,0.00016438,2]
[421540535,1777839039000,-500.0,0.00016438,2]
[421540546,1777839039000,-530.55,0.00016438,2]
[421540555,1777839039000,-500.0,0.00016438,2]
[421540545,1777839039000,-500.0,0.00016438,2]
[421540547,1777839039000,-500.0,0.00016438,2]
[421540548,1777839039000,-500.0,0.00016438,2]
[421540557,1777839039000,-500.0,0.00016438,2]
[421540553,1777839039000,-500.0,0.00016438,2]
[421540554,1777839039000,-1086.24,0.00016438,2]
[421540550,1777839039000,-500.0,0.00016438,2]
[421540486,1777839039000,-801.59,0.00016438,2]
[421540552,1777839039000,-500.0,0.00016438,2]
[421540549,1777839039000,-500.0,0.00016438,2]
[421540559,1777839039000,-838.67,0.00016438,2]
[421540558,1777839039000,-577.84,0.00016438,2]
[421540544,1777839039000,-608.65,0.00016438,2]
[421540515,1777839039000,-641.48305469,0.00016438,2]
[421540556,1777839039000,-500.0,0.00016438,2]
[421540527,1777839039000,-596.66,0.00016438,2]
[421540529,1777839039000,-593.14,0.00016438,2]
[421540489,1777839039000,-500.0,0.00016438,2]
[421540490,1777839039000,-500.0,0.00016438,2]
[421540497,1777839039000,-500.0,0.00016438,2]
[421540498,1777839039000,-262.83474243,0.00016438,2]
[421540494,1777839039000,-500.0,0.00016438,2]
[421540495,1777839039000,-500.0,0.00016438,2]
[421540492,1777839039000,-500.0,0.00016438,2]
[421540491,1777839039000,-502.35,0.00016438,2]
[421540493,1777839039000,-500.0,0.00016438,2]
[421540496,1777839039000,-500.0,0.00016438,2]
[421540499,1777839039000,-939.33,0.00016438,2]
[421540501,1777839039000,-435.56582206,0.00016438,2]
[421540511,1777839039000,-690.11,0.00016438,2]
[421540513,1777839039000,-500.0,0.00016438,2]
[421540551,1777839039000,-500.0,0.00016438,2]
[421540510,1777839039000,-901.45,0.00016438,2]
[421540514,1777839039000,-1334.15,0.00016438,2]
[421540517,1777839039000,-500.0,0.00016438,2]
[421540520,1777839039000,-500.0,0.00016438,2]
[421540524,1777839039000,-500.0,0.00016438,2]
[421540521,1777839039000,-649.65,0.00016438,2]
[421540526,1777839039000,-500.0,0.00016438,2]
[421540525,1777839039000,-830.1,0.00016438,2]
[421540508,1777839039000,-568.81,0.00016438,2]
[421540500,1777839039000,-500.0,0.00016438,2]
[421540506,1777839039000,-500.0,0.00016438,2]
[421540502,1777839039000,-515.79,0.00016438,2]
[421540528,1777839039000,-500.0,0.00016438,2]
[421540503,1777839039000,-700.28,0.00016438,2]
[421540505,1777839039000,-500.0,0.00016438,2]
[421540504,1777839039000,-500.0,0.00016438,2]
[421540628,1777839040000,-500.0,0.00016438,2]
[421540640,1777839040000,-500.0,0.00016438,2]
[421540647,1777839040000,-500.0,0.00016438,2]
[421540638,1777839040000,-500.0,0.00016438,2]
[421540637,1777839040000,-1373.25,0.00016438,2]
[421540631,1777839040000,-500.0,0.00016438,2]
[421540634,1777839040000,-395.47931736,0.00016438,2]
[421540632,1777839040000,-500.0,0.00016438,2]
[421540630,1777839040000,-500.0,0.00016438,2]
[421540641,1777839040000,-1156.09,0.00016438,2]
[421540636,1777839040000,-5640.05,0.00016438,2]
[421540625,1777839040000,-500.0,0.00016438,2]
[421540633,1777839040000,-477.73250152,0.00016438,2]
[421540624,1777839040000,-500.0,0.00016438,2]
[421540635,1777839040000,-842.33,0.00016438,2]
[421540627,1777839040000,-500.0,0.00016438,2]
[421540626,1777839040000,-500.0,0.00016438,2]
[421540639,1777839040000,-556.78,0.00016438,2]
[421540623,1777839040000,-500.0,0.00016438,2]
[421540622,1777839040000,-500.0,0.00016438,2]
[421540620,1777839040000,-500.0,0.00016438,2]
[421540621,1777839040000,-651.94,0.00016438,2]
[421540619,1777839040000,-671.01,0.00016438,2]
[421540615,1777839040000,-581.49,0.00016438,2]
[421540629,1777839040000,-187.71856418,0.00016438,2]
[421540642,1777839040000,-500.0,0.00016438,2]
[421540648,1777839040000,-1101.25,0.00016438,2]
[421540646,1777839040000,-507.14,0.00016438,2]
[421540616,1777839040000,-500.0,0.00016438,2]
[421540671,1777839040000,-208.25992459,0.00016438,2]
[421540665,1777839040000,-1650.1,0.00016438,2]
[421540667,1777839040000,-500.0,0.00016438,2]
[421540666,1777839040000,-500.0,0.00016438,2]
[421540668,1777839040000,-500.0,0.00016438,2]
[421540663,1777839040000,-570.35,0.00016438,2]
[421540669,1777839040000,-2825.02,0.00016438,2]
[421540664,1777839040000,-500.0,0.00016438,2]
[421540670,1777839040000,-500.0,0.00016438,2]
[421540660,1777839040000,-500.0,0.00016438,2]
[421540662,1777839040000,-2435.69,0.00016438,2]
[421540657,1777839040000,-579.52,0.00016438,2]
[421540653,1777839040000,-1918.63,0.00016438,2]
[421540655,1777839040000,-829.95,0.00016438,2]
[421540656,1777839040000,-572.58,0.00016438,2]
[421540658,1777839040000,-5627.36,0.00016438,2]
[421540654,1777839040000,-500.0,0.00016438,2]
[421540652,1777839040000,-500.0,0.00016438,2]
[421540651,1777839040000,-506.68,0.00016438,2]
[421540650,1777839040000,-986.32,0.00016438,2]
[421540659,1777839040000,-664.02,0.00016438,2]
[421540649,1777839040000,-500.0,0.00016438,2]
[421540645,1777839040000,-525.1,0.00016438,2]
[421540644,1777839040000,-1044.42,0.00016438,2]
[421540643,1777839040000,-1581.85,0.00016438,2]
[421540661,1777839040000,-500.0,0.00016438,2]
[421540617,1777839040000,-500.0,0.00016438,2]
[421540613,1777839040000,-3803.99,0.00016438,2]
[421540577,1777839040000,-500.0,0.00016438,2]
[421540579,1777839040000,-611.92,0.00016438,2]
[421540582,1777839040000,-823.8,0.00016438,2]
[421540578,1777839040000,-500.0,0.00016438,2]
[421540581,1777839040000,-500.0,0.00016438,2]
[421540573,1777839040000,-500.0,0.00016438,2]
[421540580,1777839040000,-500.0,0.00016438,2]
[421540576,1777839040000,-959.7,0.00016438,2]
[421540572,1777839040000,-225.93953076,0.00016438,2]
[421540574,1777839040000,-2417.46,0.00016438,2]
[421540570,1777839040000,-500.0,0.00016438,2]
[421540575,1777839040000,-500.0,0.00016438,2]
[421540566,1777839040000,-1376.4,0.00016438,2]
[421540568,1777839040000,-500.0,0.00016438,2]
[421540563,1777839040000,-500.0,0.00016438,2]
[421540567,1777839040000,-500.0,0.00016438,2]
[421540565,1777839040000,-556.3,0.00016438,2]
[421540564,1777839040000,-579.1,0.00016438,2]
[421540569,1777839040000,-611.86853044,0.00016438,2]
[421540560,1777839040000,-500.0,0.00016438,2]
[421540561,1777839040000,-500.0,0.00016438,2]
[421540562,1777839040000,-543.86,0.00016438,2]
[421540614,1777839040000,-500.0,0.00016438,2]
[421540584,1777839040000,-1196.88,0.00016438,2]
[421540595,1777839040000,-500.0,0.00016438,2]
[421540571,1777839040000,-500.0,0.00016438,2]
[421540583,1777839040000,-500.0,0.00016438,2]
[421540585,1777839040000,-500.0,0.00016438,2]
[421540612,1777839040000,-500.0,0.00016438,2]
[421540611,1777839040000,-500.0,0.00016438,2]
[421540610,1777839040000,-569.89,0.00016438,2]
[421540603,1777839040000,-769.86,0.00016438,2]
[421540605,1777839040000,-500.0,0.00016438,2]
[421540601,1777839040000,-747.65,0.00016438,2]
[421540604,1777839040000,-500.0,0.00016438,2]
[421540608,1777839040000,-568.22,0.00016438,2]
[421540607,1777839040000,-3125.32,0.00016438,2]
[421540609,1777839040000,-500.0,0.00016438,2]
[421540606,1777839040000,-500.0,0.00016438,2]
[421540599,1777839040000,-500.0,0.00016438,2]
[421540597,1777839040000,-500.0,0.00016438,2]
[421540587,1777839040000,-1307.57,0.00016438,2]
[421540594,1777839040000,-500.0,0.00016438,2]
[421540586,1777839040000,-500.0,0.00016438,2]
[421540589,1777839040000,-610.07,0.00016438,2]
[421540592,1777839040000,-500.0,0.00016438,2]
[421540588,1777839040000,-2014.93,0.00016438,2]
[421540591,1777839040000,-500.0,0.00016438,2]
[421540593,1777839040000,-500.0,0.00016438,2]